[Event "Titled Tuesday Blitz February 14 Late 2023"]
[White "Papasimakopoulos, Alexandros"]
[Black "Mazurkiewicz, Michal"]
[WhiteFideId "4244125"]
[BlackFideId "1124943"]
[WhiteElo "2401"]
[BlackElo "2145"]
[Result "1-0"]
[Round "06"]
[TimeControl "180+2"]
[Date "2023.02.14"]
[WhiteClock "0:01:08"]
[BlackClock "0:00:05"]

1. d4 {[%clk 0:03:00]}  Nf6 {[%clk 0:03:00]} 2. c4 {[%clk 0:03:01]}  e5 {[%clk 0:03:00]} 3. dxe5 {[%clk 0:03:00]}  Ng4 {[%clk 0:03:01]} 4. e3 {[%clk 0:03:00]}  Nxe5 {[%clk 0:03:01]} 5. Nh3 {[%clk 0:03:00]}  d5 {[%clk 0:03:01]} 6. Qxd5 {[%clk 0:02:55]}  Qe7 {[%clk 0:03:02]} 7. Nf4 {[%clk 0:02:53]}  g5 {[%clk 0:02:57]} 8. Nd3 {[%clk 0:02:44]}  Bg7 {[%clk 0:02:48]} 9. Nxe5 {[%clk 0:02:41]}  Bxe5 {[%clk 0:02:48]} 10. Nc3 {[%clk 0:02:38]}  c6 {[%clk 0:02:48]} 11. Qd1 {[%clk 0:02:33]}  Be6 {[%clk 0:02:48]} 12. Qc2 {[%clk 0:02:22]}  Nd7 {[%clk 0:02:47]} 13. Be2 {[%clk 0:02:22]}  O-O-O {[%clk 0:02:47]} 14. Bd2 {[%clk 0:02:11]}  Kb8 {[%clk 0:02:30]} 15. O-O-O {[%clk 0:02:10]}  Qf6 {[%clk 0:02:30]} 16. Ne4 {[%clk 0:02:10]}  Qg6 {[%clk 0:02:30]} 17. Ng3 {[%clk 0:02:07]}  f5 {[%clk 0:02:18]} 18. Bd3 {[%clk 0:02:03]}  Nc5 {[%clk 0:02:05]} 19. Bc3 {[%clk 0:01:44]}  Bxc3 {[%clk 0:01:21]} 20. Qxc3 {[%clk 0:01:41]}  Nxd3+ {[%clk 0:01:21]} 21. Rxd3 {[%clk 0:01:41]}  f4 {[%clk 0:01:21]} 22. Rhd1 {[%clk 0:01:34]}  Kc8 {[%clk 0:00:48]} 23. Rxd8+ {[%clk 0:01:31]}  Rxd8 {[%clk 0:00:49]} 24. Rxd8+ {[%clk 0:01:32]}  Kxd8 {[%clk 0:00:49]} 25. exf4 {[%clk 0:01:31]}  gxf4 {[%clk 0:00:49]} 26. Qd4+ {[%clk 0:01:31]}  Kc8 {[%clk 0:00:44]} 27. Qxf4 {[%clk 0:01:29]}  Qd3 {[%clk 0:00:44]} 28. Qe4 {[%clk 0:01:21]}  Qxc4+ {[%clk 0:00:28]} 29. Qxc4 {[%clk 0:01:19]}  Bxc4 {[%clk 0:00:28]} 30. a3 {[%clk 0:01:19]}  Bd5 {[%clk 0:00:29]} 31. f3 {[%clk 0:01:19]}  Kd7 {[%clk 0:00:29]} 32. Kd2 {[%clk 0:01:19]}  Ke6 {[%clk 0:00:30]} 33. Ne2 {[%clk 0:01:18]}  Ke5 {[%clk 0:00:30]} 34. Ke3 {[%clk 0:01:18]}  a5 {[%clk 0:00:29]} 35. g4 {[%clk 0:01:18]}  b5 {[%clk 0:00:29]} 36. b4 {[%clk 0:01:14]}  axb4 {[%clk 0:00:20]} 37. axb4 {[%clk 0:01:15]}  Kd6 {[%clk 0:00:21]} 38. Nc3 {[%clk 0:01:15]}  c5 {[%clk 0:00:04]} 39. bxc5+ {[%clk 0:01:13]}  Kxc5 {[%clk 0:00:04]} 40. Nxd5 {[%clk 0:01:11]}  Kxd5 {[%clk 0:00:05]} 41. f4 {[%clk 0:01:10]}  Kc4 {[%clk 0:00:02]} 42. Kd2 {[%clk 0:01:10]}  b4 {[%clk 0:00:02]} 43. Kc2 {[%clk 0:01:09]}  h6 {[%clk 0:00:02]} 44. f5 {[%clk 0:01:09]}  Kd5 {[%clk 0:00:03]} 45. Kb3 {[%clk 0:01:08]}  Ke5 {[%clk 0:00:03]} 46. h3 {[%clk 0:01:08]}  Kf6 {[%clk 0:00:02]} 47. Kxb4 {[%clk 0:01:08]}  Kg5 {[%clk 0:00:02]} 48. Kc4 {[%clk 0:01:08]}  h5 {[%clk 0:00:03]} 49. Kd3 {[%clk 0:01:07]}  h4 {[%clk 0:00:04]} 50. Ke4 {[%clk 0:01:07]}  Kf6 {[%clk 0:00:04]} 51. Kf4 {[%clk 0:01:06]}  Kg7 {[%clk 0:00:05]} 52. g5 {[%clk 0:01:07]}  Kh7 {[%clk 0:00:05]} 53. Kg4 {[%clk 0:01:08]} 1-0


[Site "https://www.chess.com"]

[Event "Titled Tuesday Blitz February 14 Late 2023"]
[White "Di Berardino, Diego Rafael"]
[Black "Forgacs, Attila Jr."]
[WhiteFideId "2105446"]
[BlackFideId "773654"]
[WhiteElo "2479"]
[BlackElo "2264"]
[Result "1-0"]
[Round "06"]
[TimeControl "180+2"]
[Date "2023.02.14"]
[WhiteClock "0:00:04"]
[BlackClock "0:00:30"]

1. e4 {[%clk 0:03:00]}  e5 {[%clk 0:03:00]} 2. Nf3 {[%clk 0:03:00]}  Nc6 {[%clk 0:03:00]} 3. Bc4 {[%clk 0:02:58]}  Nf6 {[%clk 0:03:00]} 4. d3 {[%clk 0:02:56]}  h6 {[%clk 0:03:00]} 5. O-O {[%clk 0:02:54]}  d6 {[%clk 0:03:01]} 6. c3 {[%clk 0:02:46]}  g5 {[%clk 0:03:01]} 7. Re1 {[%clk 0:02:39]}  Bg7 {[%clk 0:03:00]} 8. a4 {[%clk 0:02:34]}  O-O {[%clk 0:02:59]} 9. Na3 {[%clk 0:02:33]}  Ne7 {[%clk 0:02:58]} 10. Nc2 {[%clk 0:02:32]}  c6 {[%clk 0:02:57]} 11. Bb3 {[%clk 0:02:22]}  Ng6 {[%clk 0:02:54]} 12. Ne3 {[%clk 0:02:21]}  d5 {[%clk 0:02:50]} 13. Nf5 {[%clk 0:02:08]}  dxe4 {[%clk 0:02:35]} 14. dxe4 {[%clk 0:02:08]}  Qxd1 {[%clk 0:02:34]} 15. Bxd1 {[%clk 0:02:08]}  Rd8 {[%clk 0:02:27]} 16. Bb3 {[%clk 0:02:04]}  Be6 {[%clk 0:02:22]} 17. Bxe6 {[%clk 0:01:51]}  fxe6 {[%clk 0:02:22]} 18. Ng3 {[%clk 0:01:50]}  Rd7 {[%clk 0:02:10]} 19. Be3 {[%clk 0:01:48]}  a6 {[%clk 0:02:10]} 20. Nd2 {[%clk 0:01:40]}  Nf4 {[%clk 0:02:03]} 21. Nc4 {[%clk 0:01:34]}  Ng4 {[%clk 0:01:43]} 22. Nb6 {[%clk 0:01:30]}  Rad8 {[%clk 0:01:39]} 23. Nxd7 {[%clk 0:01:29]}  Rxd7 {[%clk 0:01:40]} 24. Red1 {[%clk 0:01:26]}  Rf7 {[%clk 0:01:14]} 25. Rd8+ {[%clk 0:01:25]}  Kh7 {[%clk 0:01:14]} 26. Rad1 {[%clk 0:01:24]}  h5 {[%clk 0:01:11]} 27. R1d7 {[%clk 0:01:11]}  Rxd7 {[%clk 0:00:54]} 28. Rxd7 {[%clk 0:01:12]}  Kg6 {[%clk 0:00:53]} 29. Rxb7 {[%clk 0:00:56]}  h4 {[%clk 0:00:51]} 30. Bxf4 {[%clk 0:00:52]}  exf4 {[%clk 0:00:50]} 31. Ne2 {[%clk 0:00:49]}  Ne5 {[%clk 0:00:48]} 32. Nd4 {[%clk 0:00:47]}  h3 {[%clk 0:00:41]} 33. Nxe6 {[%clk 0:00:37]}  Bf6 {[%clk 0:00:40]} 34. Nf8+ {[%clk 0:00:26]}  Kh5 {[%clk 0:00:38]} 35. Rh7+ {[%clk 0:00:26]}  Kg4 {[%clk 0:00:38]} 36. f3+ {[%clk 0:00:21]}  Nxf3+ {[%clk 0:00:38]} 37. gxf3+ {[%clk 0:00:20]}  Kxf3 {[%clk 0:00:38]} 38. Rxh3+ {[%clk 0:00:18]}  Kxe4 {[%clk 0:00:38]} 39. Ng6 {[%clk 0:00:10]}  g4 {[%clk 0:00:38]} 40. Rh7 {[%clk 0:00:10]}  f3 {[%clk 0:00:37]} 41. Kf1 {[%clk 0:00:09]}  Bg5 {[%clk 0:00:33]} 42. Rc7 {[%clk 0:00:07]}  Bc1 {[%clk 0:00:29]} 43. b4 {[%clk 0:00:05]}  Bd2 {[%clk 0:00:21]} 44. Rxc6 {[%clk 0:00:05]}  Kd3 {[%clk 0:00:22]} 45. b5 {[%clk 0:00:05]}  Bxc3 {[%clk 0:00:23]} 46. Rxc3+ {[%clk 0:00:04]}  Kxc3 {[%clk 0:00:23]} 47. bxa6 {[%clk 0:00:05]}  Kb4 {[%clk 0:00:24]} 48. a7 {[%clk 0:00:05]}  g3 {[%clk 0:00:24]} 49. hxg3 {[%clk 0:00:04]}  Kc5 {[%clk 0:00:23]} 50. a8=Q {[%clk 0:00:04]}  Kd4 {[%clk 0:00:24]} 51. Qxf3 {[%clk 0:00:03]}  Kc5 {[%clk 0:00:23]} 52. Qf5+ {[%clk 0:00:03]}  Kd6 {[%clk 0:00:24]} 53. Qf6+ {[%clk 0:00:03]}  Kd7 {[%clk 0:00:25]} 54. Qe5 {[%clk 0:00:03]}  Kc6 {[%clk 0:00:25]} 55. Qb5+ {[%clk 0:00:03]}  Kd6 {[%clk 0:00:25]} 56. Nh4 {[%clk 0:00:03]}  Ke6 {[%clk 0:00:26]} 57. a5 {[%clk 0:00:03]}  Kf6 {[%clk 0:00:27]} 58. a6 {[%clk 0:00:03]}  Ke6 {[%clk 0:00:28]} 59. a7 {[%clk 0:00:04]}  Kd6 {[%clk 0:00:29]} 60. a8=Q {[%clk 0:00:04]}  Kc7 {[%clk 0:00:30]} 61. Qac6+ {[%clk 0:00:03]}  Kd8 {[%clk 0:00:30]} 62. Qd7# {[%clk 0:00:04]} 1-0


[Site "https://www.chess.com"]

[Event "Titled Tuesday Blitz February 14 Late 2023"]
[White "Poeta, Caio Medeiros"]
[Black "Koellner, Ruben Gideon"]
[WhiteFideId "2142660"]
[BlackFideId "12993093"]
[WhiteElo "2088"]
[BlackElo "2426"]
[Result "0-1"]
[Round "06"]
[TimeControl "180+2"]
[Date "2023.02.14"]
[WhiteClock "0:00:36"]
[BlackClock "0:00:30"]

1. d4 {[%clk 0:03:00]}  d6 {[%clk 0:03:00]} 2. c4 {[%clk 0:03:00]}  e5 {[%clk 0:03:00]} 3. Nf3 {[%clk 0:03:00]}  e4 {[%clk 0:03:00]} 4. Nfd2 {[%clk 0:02:59]}  f5 {[%clk 0:03:01]} 5. e3 {[%clk 0:02:59]}  Nf6 {[%clk 0:03:01]} 6. Nc3 {[%clk 0:03:00]}  c5 {[%clk 0:03:02]} 7. Be2 {[%clk 0:02:54]}  Nc6 {[%clk 0:03:02]} 8. Nb3 {[%clk 0:02:41]}  Be7 {[%clk 0:03:02]} 9. O-O {[%clk 0:02:40]}  O-O {[%clk 0:03:02]} 10. f3 {[%clk 0:02:39]}  Re8 {[%clk 0:02:52]} 11. fxe4 {[%clk 0:02:37]}  Nxe4 {[%clk 0:02:50]} 12. Nxe4 {[%clk 0:02:36]}  fxe4 {[%clk 0:02:51]} 13. Bd2 {[%clk 0:02:33]}  cxd4 {[%clk 0:02:49]} 14. exd4 {[%clk 0:02:28]}  Bf6 {[%clk 0:02:49]} 15. d5 {[%clk 0:02:26]}  Nd4 {[%clk 0:02:47]} 16. Bc3 {[%clk 0:02:22]}  Nxb3 {[%clk 0:02:34]} 17. axb3 {[%clk 0:02:19]}  Qb6+ {[%clk 0:02:28]} 18. Kh1 {[%clk 0:02:18]}  Bxc3 {[%clk 0:02:29]} 19. bxc3 {[%clk 0:02:18]}  Bd7 {[%clk 0:02:26]} 20. Qd4 {[%clk 0:02:02]}  Qxb3 {[%clk 0:02:03]} 21. Bh5 {[%clk 0:02:00]}  Re5 {[%clk 0:01:51]} 22. Bf7+ {[%clk 0:01:56]}  Kh8 {[%clk 0:01:47]} 23. Rfb1 {[%clk 0:01:55]}  Qc2 {[%clk 0:01:42]} 24. Rxb7 {[%clk 0:01:55]}  Bc8 {[%clk 0:01:22]} 25. Rbb1 {[%clk 0:01:31]}  e3 {[%clk 0:01:17]} 26. Re1 {[%clk 0:01:06]}  e2 {[%clk 0:01:10]} 27. Be6 {[%clk 0:01:05]}  Bxe6 {[%clk 0:01:07]} 28. dxe6 {[%clk 0:01:05]}  Rxe6 {[%clk 0:01:07]} 29. Rxa7 {[%clk 0:00:48]}  Rxa7 {[%clk 0:01:01]} 30. Qxa7 {[%clk 0:00:48]}  h6 {[%clk 0:00:57]} 31. Qb8+ {[%clk 0:00:35]}  Kh7 {[%clk 0:00:56]} 32. Qf8 {[%clk 0:00:36]}  Rf6 {[%clk 0:00:30]} 0-1


[Site "https://www.chess.com"]

[Event "Titled Tuesday Blitz February 14 Late 2023"]
[White "Dinu, Dumitru-Daniel"]
[Black "Moral Garcia, Serafin"]
[WhiteFideId "1208403"]
[BlackFideId "2201925"]
[WhiteElo "2203"]
[BlackElo "2238"]
[Result "0-1"]
[Round "06"]
[TimeControl "180+2"]
[Date "2023.02.14"]
[WhiteClock "0:00:19"]
[BlackClock "0:00:58"]

1. e4 {[%clk 0:03:00]}  c5 {[%clk 0:02:58]} 2. b3 {[%clk 0:02:58]}  g6 {[%clk 0:02:56]} 3. Bb2 {[%clk 0:02:58]}  Nf6 {[%clk 0:02:56]} 4. e5 {[%clk 0:02:58]}  Nd5 {[%clk 0:02:55]} 5. g3 {[%clk 0:02:53]}  Bg7 {[%clk 0:02:53]} 6. Bg2 {[%clk 0:02:53]}  Nc7 {[%clk 0:02:50]} 7. Nf3 {[%clk 0:02:45]}  Nc6 {[%clk 0:02:49]} 8. O-O {[%clk 0:02:43]}  d5 {[%clk 0:02:48]} 9. Re1 {[%clk 0:02:38]}  Bg4 {[%clk 0:02:46]} 10. h3 {[%clk 0:02:36]}  Bxf3 {[%clk 0:02:45]} 11. Bxf3 {[%clk 0:02:35]}  O-O {[%clk 0:02:40]} 12. d3 {[%clk 0:02:14]}  e6 {[%clk 0:02:37]} 13. Nd2 {[%clk 0:02:13]}  f6 {[%clk 0:02:28]} 14. exf6 {[%clk 0:02:13]}  Bxf6 {[%clk 0:02:27]} 15. Bxf6 {[%clk 0:02:12]}  Qxf6 {[%clk 0:02:27]} 16. Rf1 {[%clk 0:01:54]}  Nb5 {[%clk 0:02:22]} 17. Bg2 {[%clk 0:01:44]}  Nc3 {[%clk 0:02:20]} 18. Qe1 {[%clk 0:01:44]}  Nd4 {[%clk 0:02:17]} 19. Rc1 {[%clk 0:00:47]}  Nde2+ {[%clk 0:02:04]} 20. Kh2 {[%clk 0:00:47]}  Nxc1 {[%clk 0:02:04]} 21. Qxc1 {[%clk 0:00:47]}  b5 {[%clk 0:01:56]} 22. Nf3 {[%clk 0:00:44]}  a5 {[%clk 0:01:47]} 23. Qe3 {[%clk 0:00:43]}  d4 {[%clk 0:01:36]} 24. Qe1 {[%clk 0:00:43]}  Nxa2 {[%clk 0:01:30]} 25. Ne5 {[%clk 0:00:42]}  Ra7 {[%clk 0:01:26]} 26. Ng4 {[%clk 0:00:37]}  Qe7 {[%clk 0:01:16]} 27. Qe5 {[%clk 0:00:36]}  h5 {[%clk 0:01:06]} 28. Nh6+ {[%clk 0:00:31]}  Kh7 {[%clk 0:01:05]} 29. Be4 {[%clk 0:00:20]}  Kxh6 {[%clk 0:01:04]} 30. g4 {[%clk 0:00:20]}  Qc7 {[%clk 0:01:00]} 31. g5+ {[%clk 0:00:19]}  Kh7 {[%clk 0:00:59]} 32. f4 {[%clk 0:00:19]}  Qxe5 {[%clk 0:00:58]} 0-1


[Site "https://www.chess.com"]

[Event "Titled Tuesday Blitz February 14 Late 2023"]
[White "vjecspec"]
[Black "Lorenzo De La Riva, Lazaro"]
[BlackFideId "2268809"]
[WhiteElo "2552"]
[BlackElo "2404"]
[Result "0-1"]
[Round "06"]
[TimeControl "180+2"]
[Date "2023.02.14"]
[WhiteClock "0:00:04"]
[BlackClock "0:00:21"]

1. e4 {[%clk 0:03:00]}  d6 {[%clk 0:02:57]} 2. d4 {[%clk 0:03:00]}  Nf6 {[%clk 0:02:57]} 3. Nc3 {[%clk 0:03:00]}  e5 {[%clk 0:02:56]} 4. Nge2 {[%clk 0:02:54]}  Nc6 {[%clk 0:02:50]} 5. g3 {[%clk 0:02:54]}  g6 {[%clk 0:02:50]} 6. Bg2 {[%clk 0:02:54]}  Bg7 {[%clk 0:02:50]} 7. O-O {[%clk 0:02:54]}  O-O {[%clk 0:02:49]} 8. h3 {[%clk 0:02:55]}  Re8 {[%clk 0:02:40]} 9. Be3 {[%clk 0:02:33]}  exd4 {[%clk 0:02:26]} 10. Nxd4 {[%clk 0:02:32]}  Ne5 {[%clk 0:02:26]} 11. f4 {[%clk 0:02:20]}  Nc4 {[%clk 0:02:25]} 12. Bc1 {[%clk 0:02:20]}  c6 {[%clk 0:02:25]} 13. b3 {[%clk 0:01:52]}  Nb6 {[%clk 0:02:24]} 14. Bb2 {[%clk 0:01:50]}  h5 {[%clk 0:02:22]} 15. a4 {[%clk 0:01:45]}  a5 {[%clk 0:02:21]} 16. Qd3 {[%clk 0:01:40]}  Nbd7 {[%clk 0:02:21]} 17. Rae1 {[%clk 0:01:37]}  Nc5 {[%clk 0:02:20]} 18. Qd2 {[%clk 0:01:35]}  Qb6 {[%clk 0:02:19]} 19. Kh1 {[%clk 0:01:31]}  Bd7 {[%clk 0:02:07]} 20. e5 {[%clk 0:01:15]}  dxe5 {[%clk 0:01:58]} 21. fxe5 {[%clk 0:01:16]}  Nh7 {[%clk 0:01:57]} 22. Qf4 {[%clk 0:01:11]}  Rf8 {[%clk 0:01:54]} 23. Ba3 {[%clk 0:01:00]}  Rae8 {[%clk 0:01:45]} 24. Nf3 {[%clk 0:00:42]}  Ne6 {[%clk 0:01:40]} 25. Qe3 {[%clk 0:00:39]}  c5 {[%clk 0:01:35]} 26. Nd5 {[%clk 0:00:38]}  Qd8 {[%clk 0:01:35]} 27. Rd1 {[%clk 0:00:31]}  b6 {[%clk 0:01:23]} 28. Bb2 {[%clk 0:00:28]}  Qb8 {[%clk 0:01:17]} 29. c4 {[%clk 0:00:24]}  Bc6 {[%clk 0:01:15]} 30. Qf2 {[%clk 0:00:24]}  Nd4 {[%clk 0:01:14]} 31. Nxd4 {[%clk 0:00:22]}  cxd4 {[%clk 0:01:14]} 32. Nf6+ {[%clk 0:00:22]}  Bxf6 {[%clk 0:01:09]} 33. Bxc6 {[%clk 0:00:20]}  Rxe5 {[%clk 0:01:08]} 34. Bxd4 {[%clk 0:00:17]}  Rf5 {[%clk 0:01:08]} 35. Qg2 {[%clk 0:00:16]}  Bxd4 {[%clk 0:01:06]} 36. Rxf5 {[%clk 0:00:15]}  Be5 {[%clk 0:00:47]} 37. Rf3 {[%clk 0:00:13]}  h4 {[%clk 0:00:45]} 38. gxh4 {[%clk 0:00:11]}  Nf6 {[%clk 0:00:39]} 39. Bd5 {[%clk 0:00:11]}  Kg7 {[%clk 0:00:39]} 40. Rdf1 {[%clk 0:00:08]}  Qd6 {[%clk 0:00:33]} 41. Qg5 {[%clk 0:00:05]}  Rh8 {[%clk 0:00:34]} 42. R1f2 {[%clk 0:00:04]}  Rh5 {[%clk 0:00:33]} 43. Qe3 {[%clk 0:00:05]}  Rxh4 {[%clk 0:00:30]} 44. Kg2 {[%clk 0:00:05]}  Bd4 {[%clk 0:00:28]} 45. Qd3 {[%clk 0:00:04]}  Bxf2 {[%clk 0:00:27]} 46. Rxf2 {[%clk 0:00:05]}  Rh5 {[%clk 0:00:22]} 47. Rd2 {[%clk 0:00:04]}  Rg5+ {[%clk 0:00:22]} 48. Kf2 {[%clk 0:00:04]}  Qh2+ {[%clk 0:00:21]} 49. Ke1 {[%clk 0:00:04]}  Rg1+ {[%clk 0:00:21]} 50. Qf1 {[%clk 0:00:04]}  Rxf1+ {[%clk 0:00:21]} 0-1


[Site "https://www.chess.com"]

[Event "Titled Tuesday Blitz February 14 Late 2023"]
[White "Maltsevskaya, Aleksandra"]
[Black "Meunier-Pion, Jean"]
[WhiteFideId "24174041"]
[BlackFideId "20685327"]
[WhiteElo "2390"]
[BlackElo "2215"]
[Result "1-0"]
[Round "06"]
[TimeControl "180+2"]
[Date "2023.02.14"]
[WhiteClock "0:01:31"]
[BlackClock "0:00:03"]

1. g3 {[%clk 0:03:00]}  d5 {[%clk 0:02:59]} 2. Bg2 {[%clk 0:03:01]}  e5 {[%clk 0:02:59]} 3. d3 {[%clk 0:03:02]}  Nc6 {[%clk 0:02:56]} 4. e3 {[%clk 0:03:03]}  Be6 {[%clk 0:02:56]} 5. Ne2 {[%clk 0:03:03]}  Qd7 {[%clk 0:02:56]} 6. b3 {[%clk 0:03:03]}  Bb4+ {[%clk 0:02:52]} 7. Nd2 {[%clk 0:03:03]}  h5 {[%clk 0:02:45]} 8. h3 {[%clk 0:03:02]}  f5 {[%clk 0:02:40]} 9. Bb2 {[%clk 0:03:02]}  h4 {[%clk 0:02:39]} 10. gxh4 {[%clk 0:02:55]}  Rxh4 {[%clk 0:02:32]} 11. a3 {[%clk 0:02:53]}  Bxd2+ {[%clk 0:02:21]} 12. Qxd2 {[%clk 0:02:52]}  O-O-O {[%clk 0:02:15]} 13. O-O-O {[%clk 0:02:52]}  Nf6 {[%clk 0:02:09]} 14. Rhg1 {[%clk 0:02:39]}  Qf7 {[%clk 0:01:24]} 15. f4 {[%clk 0:01:55]}  e4 {[%clk 0:01:07]} 16. Nd4 {[%clk 0:01:55]}  Nxd4 {[%clk 0:01:06]} 17. Bxd4 {[%clk 0:01:56]}  b6 {[%clk 0:01:02]} 18. Bf1 {[%clk 0:01:54]}  exd3 {[%clk 0:00:38]} 19. Bxd3 {[%clk 0:01:43]}  Rxh3 {[%clk 0:00:32]} 20. Qg2 {[%clk 0:01:40]}  Rh7 {[%clk 0:00:26]} 21. Qg6 {[%clk 0:01:40]}  Ne4 {[%clk 0:00:11]} 22. Qxf7 {[%clk 0:01:33]}  Bxf7 {[%clk 0:00:11]} 23. Bxg7 {[%clk 0:01:33]}  Rg8 {[%clk 0:00:07]} 24. Be5 {[%clk 0:01:33]}  Rxg1 {[%clk 0:00:06]} 25. Rxg1 {[%clk 0:01:34]}  Kb7 {[%clk 0:00:06]} 26. Kb2 {[%clk 0:01:33]}  Rh2 {[%clk 0:00:06]} 27. Rg7 {[%clk 0:01:32]}  Bh5 {[%clk 0:00:04]} 28. Rxc7+ {[%clk 0:01:32]}  Ka8 {[%clk 0:00:04]} 29. Ba6 {[%clk 0:01:31]}  Nc5 {[%clk 0:00:03]} 30. Rc8# {[%clk 0:01:31]} 1-0


[Site "https://www.chess.com"]

[Event "Titled Tuesday Blitz February 14 Late 2023"]
[White "Gutkin, Ilya"]
[Black "Martinez Reyes, Pedro Ramon"]
[WhiteFideId "16203470"]
[BlackFideId "3901807"]
[WhiteElo "2273"]
[BlackElo "2376"]
[Result "0-1"]
[Round "06"]
[TimeControl "180+2"]
[Date "2023.02.14"]
[WhiteClock "0:00:04"]
[BlackClock "0:02:40"]

1. Nf3 {[%clk 0:03:00]}  d6 {[%clk 0:03:00]} 2. d4 {[%clk 0:03:00]}  Nf6 {[%clk 0:03:00]} 3. b3 {[%clk 0:03:00]}  g6 {[%clk 0:03:01]} 4. Bb2 {[%clk 0:03:01]}  Bg7 {[%clk 0:03:02]} 5. g3 {[%clk 0:03:01]}  O-O {[%clk 0:03:03]} 6. Bg2 {[%clk 0:03:02]}  Bf5 {[%clk 0:03:03]} 7. O-O {[%clk 0:03:02]}  Nc6 {[%clk 0:03:03]} 8. c4 {[%clk 0:03:00]}  Ne4 {[%clk 0:03:03]} 9. Nbd2 {[%clk 0:02:56]}  Nxd2 {[%clk 0:02:58]} 10. Qxd2 {[%clk 0:02:56]}  Be4 {[%clk 0:02:58]} 11. d5 {[%clk 0:02:41]}  Bxb2 {[%clk 0:02:50]} 12. Qxb2 {[%clk 0:02:42]}  Bxf3 {[%clk 0:02:51]} 13. Bxf3 {[%clk 0:02:40]}  Ne5 {[%clk 0:02:51]} 14. Bg2 {[%clk 0:02:41]}  c5 {[%clk 0:02:50]} 15. h3 {[%clk 0:02:29]}  Rb8 {[%clk 0:02:49]} 16. f4 {[%clk 0:02:28]}  Nd7 {[%clk 0:02:49]} 17. a4 {[%clk 0:02:12]}  a6 {[%clk 0:02:49]} 18. e4 {[%clk 0:01:56]}  b5 {[%clk 0:02:49]} 19. axb5 {[%clk 0:01:57]}  axb5 {[%clk 0:02:50]} 20. Qc3 {[%clk 0:01:57]}  Qb6 {[%clk 0:02:44]} 21. h4 {[%clk 0:01:48]}  Ra8 {[%clk 0:02:44]} 22. h5 {[%clk 0:01:40]}  bxc4 {[%clk 0:02:44]} 23. bxc4 {[%clk 0:01:40]}  Qb4 {[%clk 0:02:45]} 24. Qd3 {[%clk 0:01:30]}  Nb6 {[%clk 0:02:40]} 25. hxg6 {[%clk 0:00:16]}  hxg6 {[%clk 0:02:38]} 26. e5 {[%clk 0:00:15]}  Qxc4 {[%clk 0:02:38]} 27. Qf3 {[%clk 0:00:11]}  Qd4+ {[%clk 0:02:39]} 28. Qf2 {[%clk 0:00:05]}  Rxa1 {[%clk 0:02:39]} 29. Qxd4 {[%clk 0:00:04]}  Rxf1+ {[%clk 0:02:40]} 0-1


[Site "https://www.chess.com"]

[Event "Titled Tuesday Blitz February 14 Late 2023"]
[White "Ramirez Allo, Eduardo"]
[Black "Szente Varga, Fruzsina"]
[WhiteFideId "2224178"]
[BlackFideId "712264"]
[WhiteElo "2274"]
[BlackElo "2075"]
[Result "1-0"]
[Round "06"]
[TimeControl "180+2"]
[Date "2023.02.14"]
[WhiteClock "0:01:31"]
[BlackClock "0:00:27"]

1. Nf3 {[%clk 0:03:00]}  Nf6 {[%clk 0:02:58]} 2. c4 {[%clk 0:03:01]}  g6 {[%clk 0:02:58]} 3. g3 {[%clk 0:03:01]}  Bg7 {[%clk 0:02:58]} 4. Bg2 {[%clk 0:03:01]}  d5 {[%clk 0:02:59]} 5. O-O {[%clk 0:03:02]}  c6 {[%clk 0:02:59]} 6. d3 {[%clk 0:03:01]}  O-O {[%clk 0:02:59]} 7. Nbd2 {[%clk 0:03:02]}  Nbd7 {[%clk 0:02:57]} 8. Rb1 {[%clk 0:03:02]}  e5 {[%clk 0:02:57]} 9. Qc2 {[%clk 0:03:01]}  Re8 {[%clk 0:02:57]} 10. e3 {[%clk 0:03:01]}  Nb6 {[%clk 0:02:48]} 11. b4 {[%clk 0:02:59]}  Bf5 {[%clk 0:02:42]} 12. e4 {[%clk 0:02:49]}  dxe4 {[%clk 0:02:42]} 13. dxe4 {[%clk 0:02:50]}  Bg4 {[%clk 0:02:34]} 14. Bb2 {[%clk 0:02:43]}  Qc7 {[%clk 0:02:20]} 15. h3 {[%clk 0:02:39]}  Bd7 {[%clk 0:02:15]} 16. c5 {[%clk 0:02:38]}  Nc8 {[%clk 0:02:14]} 17. Nc4 {[%clk 0:02:37]}  b5 {[%clk 0:02:12]} 18. Ncxe5 {[%clk 0:02:32]}  Be6 {[%clk 0:01:58]} 19. a3 {[%clk 0:02:20]}  a5 {[%clk 0:01:58]} 20. Ng5 {[%clk 0:02:03]}  axb4 {[%clk 0:01:09]} 21. axb4 {[%clk 0:02:03]}  Ba2 {[%clk 0:01:07]} 22. Ra1 {[%clk 0:02:01]}  Rxe5 {[%clk 0:00:54]} 23. Bxe5 {[%clk 0:01:37]}  Qxe5 {[%clk 0:00:55]} 24. Rxa2 {[%clk 0:01:35]}  Rxa2 {[%clk 0:00:55]} 25. Qxa2 {[%clk 0:01:36]}  Qxg5 {[%clk 0:00:50]} 26. Qa8 {[%clk 0:01:35]}  Qe5 {[%clk 0:00:28]} 27. Qxc8+ {[%clk 0:01:33]}  Bf8 {[%clk 0:00:27]} 28. Qxc6 {[%clk 0:01:31]} 1-0


[Site "https://www.chess.com"]